bitfinex/quotes_ETHUSD_20251124
["timestamp","ask_amount","ask_price","bid_price","bid_amount"]
[1764003559093,0.9382,2864.1,2864.0,0.001]
[1764003559387,0.4461,2864.1,2864.0,0.001]
[1764003560050,0.9217,2864.1,2864.0,0.001]
[1764003560347,0.0012,2864.3,2864.0,0.3907]
[1764003561184,0.0012,2864.3,2864.1,0.071]
[1764003562012,0.0012,2864.3,2864.2,0.3897]
[1764003562548,0.0012,2864.3,2864.1,0.071]
[1764003563452,0.0012,2864.3,2864.2,0.3897]
[1764003563678,0.0012,2864.3,2864.0,0.001]
[1764003564501,0.0012,2864.3,2864.2,0.3897]
[1764003566095,0.0012,2864.3,2864.1,0.071]
[1764003566290,0.80113678,2864.3,2864.0,0.001]
[1764003566480,0.32623678,2864.2,2864.0,0.001]
[1764003567311,0.0012,2864.3,2864.0,0.001]
[1764003567512,0.80303678,2864.3,2864.0,0.001]
[1764003567681,0.32623678,2864.2,2864.0,0.001]
[1764003568011,0.4737,2864.1,2864.0,0.001]
[1764003570295,0.0012,2864.3,2864.0,0.3907]
[1764003570609,0.32709572,2864.2,2864.0,0.3907]
[1764003570782,0.32709572,2864.2,2864.0,0.001]
[1764003570987,0.4737,2864.1,2864.0,0.001]
[1764003572215,1.52649233,2864.1,2864.0,0.001]
[1764003572820,2.00209233,2864.1,2864.0,0.001]
[1764003573722,1.52649233,2864.1,2864.0,0.001]
[1764003574829,2.00209233,2864.1,2864.0,0.001]
[1764003576424,2.00129233,2864.1,2864.0,0.001]
[1764003578138,2.50519633,2864.1,2864.0,0.001]
[1764003579205,1.93119633,2864.1,2864.0,0.001]
[1764003579527,2.40679633,2864.1,2864.0,0.001]
[1764003579929,2.00129233,2864.1,2864.0,0.001]
[1764003580948,1.05279233,2864.1,2864.0,0.001]
[1764003581242,0.32719822,2864.1,2864.0,0.3915]
[1764003581443,0.55119822,2864.1,2864.0,0.3915]
[1764003581660,0.32719822,2864.1,2864.0,0.3915]
[1764003581819,0.32719822,2864.1,2864.0,0.782]
[1764003582225,0.32719822,2864.1,2864.0,0.3915]
[1764003586345,0.80089822,2864.1,2864.0,0.001]
[1764003587043,7.70853221,2864.1,2864.0,0.001]
[1764003587446,1.99079233,2864.1,2864.0,0.001]
[1764003589559,7.70853221,2864.1,2864.0,0.001]
[1764003590849,1.52649233,2864.1,2864.0,0.001]
[1764003591771,2.01569233,2864.1,2864.0,0.001]
[1764003592572,2.01769233,2864.1,2864.0,0.001]
[1764003593976,1.52849233,2864.1,2864.0,0.001]
[1764003594356,2.01769233,2864.1,2864.0,0.001]
[1764003595370,2.11609233,2864.1,2864.0,0.001]
[1764003596750,1.39049822,2864.1,2864.0,0.001]
[1764003596951,1.79600222,2864.1,2864.0,0.001]
[1764003598288,2.52159633,2864.1,2864.0,0.001]
[1764003600086,1.79600222,2864.1,2864.0,0.001]
[1764003600587,0.32919822,2864.1,2864.0,0.3915]
[1764003600754,0.32919822,2864.1,2864.0,0.782]
[1764003600967,1.05479233,2864.1,2864.0,0.3915]
[1764003601371,0.32919822,2864.1,2864.0,0.3915]
[1764003601795,0.002,2864.1,2864.0,0.782]
[1764003602372,0.002,2864.1,2864.0,4.27362011]
[1764003602568,0.0012,2864.3,2864.0,9.11362846]
[1764003602794,0.0012,2864.3,2864.2,0.4615]
[1764003603304,0.0012,2864.3,2864.2,0.852]
[1764003603805,0.002,2864.9,2864.2,0.852]
[1764003603806,0.002,2864.9,2864.5,0.3905]
[1764003604026,0.002,2865.3,2864.8,6.10803202]
[1764003604170,0.002,2865.3,2864.9,1.3918032]
[1764003604481,0.002,2865.3,2864.9,4.88232642]
[1764003604891,0.002,2865.3,2864.9,14.09038166]
[1764003605113,0.0012,2865.5,2865.2,0.3905]
[1764003605407,0.0012,2865.5,2865.1,0.121]
[1764003605408,0.0012,2865.5,2865.3,0.3905]
[1764003605776,0.0012,2865.5,2865.3,0.781]
[1764003605992,0.0012,2865.5,2865.3,0.3905]
[1764003606408,0.0012,2865.5,2865.1,0.121]
[1764003606706,0.0012,2865.5,2865.3,0.3905]
[1764003609075,0.0012,2865.5,2865.3,0.781]
[1764003609402,0.0012,2865.5,2865.3,0.3905]
[1764003610475,0.0012,2865.5,2865.3,0.781]
[1764003610671,0.0012,2865.5,2865.3,0.3905]
[1764003610886,0.0012,2865.5,2865.3,0.781]
[1764003611287,0.0012,2865.5,2865.3,5.2829964]
[1764003611587,0.0012,2865.5,2865.3,11.00052842]
[1764003611782,0.0012,2865.5,2865.4,0.781]
[1764003614887,0.0012,2865.5,2865.4,0.3905]
[1764003615300,0.0012,2865.5,2865.3,0.001]
[1764003615501,0.0012,2865.5,2865.4,0.3905]
[1764003616028,0.0012,2865.5,2865.4,0.781]
[1764003616909,0.0012,2865.5,2865.4,5.45262629]
[1764003617823,0.002,2865.6,2865.4,8.94254043]
[1764003618023,0.002,2865.6,2865.5,1.409504]
[1764003618226,0.002,2865.6,2865.5,1.004]
[1764003619413,0.974029,2868.2,2867.1,3.683]
[1764003619637,0.93351453,2868.8,2868.3,7.836082]
[1764003619818,0.4674,2870.3,2868.8,0.405504]
[1764003620112,0.4674,2870.3,2868.9,1.22663729]
[1764003620309,0.0984,2870.0,2869.0,0.224]
[1764003620513,6.92868598,2869.7,2868.3,1.22663729]
[1764003620693,0.0984,2869.7,2868.4,0.224]
[1764003620898,0.4674,2869.6,2868.4,0.224]
[1764003621220,0.4674,2869.6,2868.4,3.71026411]
[1764003621421,0.4674,2869.6,2868.4,5.10949365]
[1764003621753,0.4674,2869.6,2868.4,4.19134032]
[1764003621904,0.4674,2869.6,2868.4,7.67760443]
[1764003622102,0.4674,2869.6,2868.4,0.48107621]
[1764003622407,0.0984,2869.5,2868.2,0.18234469]
[1764003622597,0.0984,2869.5,2868.5,0.224]
[1764003622797,0.4674,2869.4,2868.5,0.224]
[1764003623547,0.1849,2870.1,2868.5,0.224]
[1764003623724,0.4674,2870.0,2868.6,0.224]
[1764003623923,0.4674,2870.0,2868.4,0.25400801]
[1764003624139,0.0984,2869.8,2868.7,0.224]
[1764003624434,0.0984,2869.8,2868.8,0.224]
[1764003624634,0.4674,2869.7,2868.9,0.224]
[1764003624837,0.4674,2869.7,2868.8,0.224]
[1764003625139,0.0984,2869.5,2868.8,0.224]
[1764003625302,0.1849,2868.9,2868.6,0.224]
[1764003626065,0.4674,2869.3,2868.6,0.224]
[1764003626447,0.4674,2869.3,2868.5,0.224]
[1764003626644,0.4674,2869.7,2868.5,0.224]
[1764003626846,0.4674,2869.7,2868.7,1.22663729]
[1764003627160,0.6523,2870.1,2868.7,8.19843179]
[1764003627332,0.6523,2870.1,2868.8,1.22663729]
[1764003627528,0.6523,2870.1,2868.9,2.04648047]
[1764003627729,0.4674,2870.0,2869.0,1.45063729]
[1764003627933,0.4674,2870.0,2868.8,1.22663729]
[1764003628159,0.4674,2870.0,2869.1,0.224]
[1764003628472,0.4674,2870.0,2868.8,1.22663729]
[1764003628682,0.405504,2869.7,2868.5,0.224]
[1764003628841,0.1849,2868.9,2868.4,1.22663729]
[1764003629172,0.1849,2868.9,2868.5,0.224]
[1764003630342,0.6523,2868.9,2868.3,1.45163729]
[1764003630542,0.6523,2868.9,2868.3,1.22763729]
[1764003630769,0.6523,2868.9,2868.4,0.224]
[1764003631067,0.6523,2868.9,2868.3,1.22763729]
[1764003631267,0.6523,2868.9,2868.4,1.22663729]
[1764003631838,0.6523,2868.9,2868.3,1.22763729]
[1764003632181,0.6523,2868.9,2868.4,1.22663729]
[1764003633475,0.4674,2868.8,2868.4,1.22663729]
[1764003633676,0.4515,2868.5,2868.3,1.22763729]
[1764003633981,0.002,2869.6,2868.3,0.001]
[1764003634179,0.002,2869.6,2868.6,1.83995593]
[1764003634380,0.4674,2869.5,2868.7,0.224]
[1764003634543,0.002,2869.6,2868.8,0.03485778]
[1764003634748,0.002,2869.6,2869.1,1.83995593]
[1764003634946,0.002,2869.6,2869.0,1.83995593]
[1764003635145,0.002,2869.6,2869.1,0.225]
[1764003635864,0.4694,2869.6,2868.9,1.83995593]
[1764003636174,0.4694,2869.6,2869.2,0.225]
[1764003636578,0.002,2869.6,2869.2,0.225]
[1764003636978,0.002,2869.6,2869.2,0.43149559]
[1764003637547,0.002,2869.6,2869.2,3.91677459]
[1764003637745,0.002,2869.6,2869.2,0.43149559]
[1764003637973,0.002,2869.6,2869.2,3.91676321]
[1764003638172,0.002,2869.6,2869.2,0.43149559]
[1764003638349,0.002,2869.6,2869.2,0.20649559]
[1764003638676,0.002,2869.6,2869.3,0.224]
[1764003639071,0.002,2869.6,2869.1,3.48540425]
[1764003639266,0.002,2869.6,2869.1,1.83995593]
[1764003639467,0.002,2869.6,2869.2,0.224]
[1764003639682,0.4694,2869.6,2869.2,0.224]
[1764003640181,0.002,2869.6,2869.2,0.224]
[1764003641402,0.4515,2869.3,2869.0,0.224]
[1764003641698,0.9189,2869.3,2869.0,0.224]
[1764003641904,0.002,2869.6,2869.0,0.224]
[1764003641905,0.002,2869.6,2869.0,0.43039559]
[1764003642118,0.002,2869.6,2869.1,0.03485413]
[1764003642266,0.002,2869.6,2869.5,1.83995593]
[1764003642461,0.002,2869.6,2869.5,0.224]
[1764003643200,0.002,2869.6,2869.5,2.67699625]
[1764003643385,0.002,2869.6,2869.5,6.42962356]
[1764003644308,0.002,2869.6,2869.2,2.45299625]
[1764003644613,0.002,2869.6,2869.0,6.14486592]
[1764003644761,0.002,2869.6,2868.9,2.45299625]
[1764003644762,0.4694,2869.6,2868.9,2.45299625]
[1764003644967,0.405504,2869.5,2868.4,6.59355899]
[1764003645272,0.405504,2869.5,2868.6,3.48602105]
[1764003645467,0.405504,2869.5,2868.6,9.42503835]
[1764003645691,0.405504,2869.5,2868.7,0.96490384]
[1764003645900,0.002,2869.6,2868.7,0.96490384]
[1764003646290,0.407504,2869.6,2868.8,2.45299625]
[1764003646572,0.002,2869.6,2869.1,2.45299625]
[1764003647263,0.002,2869.6,2869.3,2.45299625]
[1764003647468,0.002,2869.6,2869.4,0.224]
[1764003647706,0.002,2869.6,2869.3,2.45299625]
[1764003647707,0.893204,2869.6,2869.1,2.45299625]
[1764003648014,0.893204,2869.6,2869.2,0.224]
[1764003648304,0.3248209,2869.5,2869.3,0.224]
[1764003648479,0.3248209,2869.4,2869.3,0.224]
[1764003649177,0.3248209,2869.4,2869.3,2.67699625]
[1764003649883,0.7303249,2869.4,2869.3,2.45299625]
[1764003650084,0.405504,2869.3,2869.2,2.67699625]
[1764003650594,0.407504,2869.6,2869.2,2.67699625]
[1764003650796,0.405504,2869.4,2869.2,2.94469588]
[1764003650997,0.405504,2869.4,2869.2,0.49169963]
[1764003651169,0.002,2869.6,2869.2,0.49169963]
[1764003651170,0.32586351,2869.3,2869.2,2.94469588]
[1764003651364,0.32586351,2869.3,2869.2,0.49169963]
[1764003651884,0.405504,2869.2,2869.1,2.67699625]
[1764003652079,0.73136751,2869.2,2869.1,0.224]
[1764003652280,1.68576751,2869.2,2868.8,2.45299625]
[1764003652479,0.405504,2869.0,2868.8,0.224]
[1764003652705,0.405504,2869.5,2868.8,2.92229588]
[1764003652997,0.405504,2869.3,2868.8,2.92229588]
[1764003653208,0.405504,2869.1,2868.8,2.92229588]
[1764003653418,0.002,2869.6,2868.9,2.45299625]
[1764003653600,0.002,2869.6,2868.8,7.21677173]
[1764003653601,0.32591085,2869.5,2869.0,3.66134841]
[1764003653773,0.002,2869.6,2869.3,2.47037161]
[1764003653978,0.32591835,2869.5,2869.4,0.224]
[1764003654182,0.32591835,2869.5,2869.2,2.47037161]
[1764003654472,0.405504,2869.4,2869.2,2.47037161]
[1764003654682,0.407504,2869.6,2869.2,2.47037161]
[1764003654909,0.405504,2869.5,2869.2,2.47037161]
[1764003655202,0.405504,2869.5,2869.2,2.83650645]
[1764003655407,0.405504,2869.5,2869.2,0.36613484]
[1764003655609,0.002,2869.6,2869.2,2.83650645]
[1764003655782,0.3259653,2869.5,2869.2,2.83650645]
[1764003655978,0.405504,2869.5,2869.2,2.69437161]
[1764003656207,0.889904,2869.5,2869.2,0.224]
[1764003657010,0.3260334,2869.4,2869.2,0.224]
[1764003657217,0.889904,2869.5,2869.2,0.224]
[1764003658286,0.002,2869.6,2869.2,0.224]
[1764003658608,0.32601447,2869.5,2869.3,0.26943716]
[1764003658810,0.002,2869.6,2869.3,0.26943716]
[1764003658988,0.32601318,2869.5,2869.3,0.26943716]
[1764003659306,0.002,2869.6,2869.3,0.26943716]
[1764003659911,0.002,2869.6,2869.3,3.75450064]
[1764003660210,0.002,2869.6,2869.4,0.74637801]
[1764003660402,0.32610358,2869.5,2869.4,0.97037801]
[1764003660598,0.32610358,2869.5,2869.0,5.95588324]
[1764003660799,0.002,2869.6,2869.0,2.47037161]
[1764003660986,0.405504,2869.4,2869.0,2.47037161]
[1764003661186,0.405504,2869.4,2868.9,3.48560285]
[1764003661187,0.47,2869.1,2868.9,2.47037161]
[1764003661449,1.20176754,2869.0,2868.4,2.69437161]
[1764003661717,0.405504,2868.8,2868.5,0.26953716]
[1764003661912,0.405504,2869.4,2868.4,0.224]
[1764003662129,0.002,2869.6,2868.4,0.224]
[1764003662130,0.32627162,2869.3,2868.5,0.03486142]
[1764003662278,0.002,2869.6,2868.5,0.72559411]
[1764003662620,0.002,2869.6,2869.2,16.25430546]
[1764003662804,0.002,2869.6,2869.4,10.793951]
[1764003663005,0.002,2869.6,2869.4,9.53251546]
[1764003663208,0.002,2869.6,2869.5,0.224]
[1764003663730,0.002,2869.6,2869.5,3.70892768]
[1764003663917,0.002,2869.6,2869.5,4.73550094]
[1764003665797,0.002,2869.6,2869.5,1.02657326]
[1764003666152,0.002,2869.6,2869.4,6.97009826]
[1764003666447,0.002,2869.6,2869.5,0.224]
[1764003668046,0.002,2869.6,2869.5,3.70892768]
[1764003670343,0.002,2869.6,2869.5,4.21052179]
[1764003670505,0.002,2869.6,2869.5,4.43452179]
[1764003670824,0.1948,2869.9,2869.5,5.22647888]
[1764003671039,0.6792,2869.9,2869.5,5.22647888]
[1764003671208,0.16158405,2869.9,2869.5,8.71140656]
[1764003671403,0.16158405,2869.9,2869.5,4.50088477]
[1764003671726,0.16158405,2869.9,2869.6,0.45008848]
[1764003673022,0.16158405,2869.9,2869.6,3.93486836]
[1764003673948,0.16158405,2869.9,2869.6,0.45008848]
[1764003674151,0.16158405,2869.9,2869.6,3.93488063]
[1764003674361,0.002,2870.2,2869.6,7.41968687]
[1764003674512,0.002,2870.2,2869.7,0.76436869]
[1764003675037,0.002,2870.2,2869.8,3.48456338]
[1764003675222,0.002,2870.2,2869.9,0.224]
[1764003675953,0.002,2870.2,2870.1,0.0344]
[1764003676455,0.9564,2870.2,2869.7,0.76436869]
[1764003676611,0.6659,2869.8,2869.2,0.72559411]
[1764003676815,0.6659,2869.8,2869.3,0.224]
[1764003677017,0.6659,2869.8,2869.4,0.224]
[1764003677227,1.1503,2869.8,2869.3,3.48509566]
[1764003677463,1.1503,2869.8,2869.4,0.224]
[1764003677753,0.47,2869.4,2868.8,0.001]
[1764003678057,0.47,2869.4,2868.9,0.94959411]
[1764003678643,0.9544,2869.4,2868.9,0.72559411]
[1764003678844,0.9544,2869.4,2869.0,0.224]
[1764003679034,0.4844,2869.7,2869.1,3.48541354]
[1764003679224,0.4844,2869.7,2869.2,0.37094135]
[1764003679741,0.1959,2869.8,2869.2,0.37094135]
[1764003680063,0.002,2869.6,2869.2,0.37094135]
[1764003680427,0.4806,2869.5,2869.3,0.224]
[1764003680630,0.4806,2869.5,2869.2,0.37094135]
[1764003680952,0.4806,2869.5,2869.3,0.224]
[1764003681516,0.002,2869.6,2869.3,0.224]
[1764003682009,0.002,2869.6,2869.3,4.11716823]
[1764003682439,0.002,2869.6,2869.3,7.60233882]
[1764003682634,0.002,2869.6,2869.5,0.0344]
[1764003682850,0.002,2869.6,2869.5,0.0688]
[1764003683052,0.002,2869.6,2869.5,3.55372768]
[1764003683230,0.002,2869.6,2869.5,4.32080716]
[1764003683849,0.002,2869.6,2869.5,4.35565643]
[1764003684037,0.002,2869.6,2869.5,4.32080716]
[1764003684548,0.002,2869.6,2869.5,14.22645716]
[1764003684760,0.002,2869.6,2869.5,6.42281816]
[1764003684927,0.002,2869.6,2869.5,6.64681816]
[1764003686371,0.002,2869.6,2869.5,12.77926027]
[1764003686877,0.002,2869.6,2869.5,7.33801227]
[1764003687080,0.002,2869.6,2869.5,5.23600127]
[1764003687284,0.002,2869.6,2869.5,4.28640716]
[1764003687493,0.002,2869.6,2869.5,4.51040716]
[1764003688243,0.002,2869.6,2869.5,14.47034616]
[1764003688449,0.002,2869.6,2869.5,10.66675916]
[1764003688854,0.002,2869.6,2869.5,8.26475916]
[1764003689586,0.002,2869.6,2869.5,4.54480716]
[1764003689814,0.002,2869.6,2869.5,4.47500716]
[1764003690082,0.002,2869.6,2869.5,4.50940716]
[1764003690554,0.002,2869.6,2869.5,9.00615916]
[1764003690747,0.002,2869.6,2869.5,4.50940716]
[1764003691574,0.002,2869.6,2869.5,0.76707948]
[1764003691897,0.002,2869.6,2869.5,0.99007948]
[1764003692390,0.002,2869.6,2869.5,3.70792768]
[1764003693069,0.002,2869.6,2869.5,3.74232768]
[1764003693483,0.002,2869.6,2869.5,3.77672768]
[1764003693669,0.002,2869.6,2869.5,3.74232768]
[1764003694600,0.002,2869.6,2869.5,3.70792768]
[1764003694812,0.002,2869.6,2869.5,4.42723349]
[1764003695165,0.002,2869.6,2869.5,4.46163349]
[1764003697008,0.002,2869.6,2869.5,4.42723349]
[1764003697203,0.4836,2869.6,2869.5,0.71930581]
[1764003697407,0.405504,2869.5,2869.3,0.001]
[1764003697704,0.887104,2869.4,2869.3,0.001]
[1764003698207,0.9622,2869.4,2869.3,0.001]
[1764003699605,0.9122,2869.4,2869.3,0.224]
[1764003701095,0.8622,2869.4,2869.3,0.224]
[1764003703335,0.8622,2869.4,2869.3,0.001]
[1764003703497,1.267704,2869.4,2869.3,0.001]
[1764003706522,0.002,2869.6,2869.3,0.1354]
[1764003706720,0.002,2869.6,2869.4,0.25785049]
[1764003706928,0.002,2869.6,2869.4,0.223]
[1764003707131,0.468,2869.5,2869.4,0.223]
[1764003707323,0.468,2869.5,2869.3,0.001]
[1764003707324,0.9513,2869.5,2869.3,0.224]
[1764003707518,0.468,2869.4,2869.3,0.224]
[1764003707708,0.9513,2869.4,2869.3,0.224]
[1764003707908,0.9513,2869.4,2869.3,0.001]
[1764003708103,1.356804,2869.4,2869.3,0.001]
[1764003710233,0.9513,2869.4,2869.3,0.001]
[1764003711042,1.356804,2869.4,2869.3,0.001]
[1764003712550,1.78088315,2869.4,2869.3,0.001]
[1764003712744,1.95917147,2869.4,2869.3,0.001]
[1764003713247,0.405504,2869.3,2869.0,0.001]
[1764003713451,0.4794,2869.1,2869.0,0.001]
[1764003713747,0.884904,2869.1,2869.0,0.001]
[1764003713905,1.383404,2869.1,2869.0,0.001]
[1764003717677,0.9779,2869.1,2869.0,0.001]
[1764003718234,1.383404,2869.1,2869.0,0.001]
[1764003719274,0.884904,2869.1,2869.0,0.001]
[1764003719475,0.4985,2869.3,2869.0,0.001]
[1764003719638,0.4985,2869.5,2869.0,0.001]
[1764003719991,0.405504,2869.4,2869.0,0.001]
[1764003720375,0.002,2869.6,2869.1,0.0844]
[1764003721583,0.5005,2869.6,2869.1,0.0844]
[1764003722084,0.002,2869.6,2869.1,0.0844]
[1764003722396,0.002,2869.6,2869.1,0.3074]
[1764003722551,0.002,2869.6,2869.5,0.1344]
[1764003723057,0.002,2869.6,2869.5,0.2688]
[1764003723259,0.002,2869.6,2869.5,0.4918]
[1764003723772,0.002,2869.6,2869.2,0.86523429]
[1764003723959,0.002,2869.6,2869.2,0.78599278]
[1764003724162,0.4794,2869.3,2869.2,0.223]
[1764003724698,0.4794,2869.3,2869.0,0.001]
[1764003725056,0.9779,2869.3,2869.0,0.001]
[1764003725453,0.4985,2869.2,2869.0,0.001]
[1764003725776,0.884904,2869.1,2869.0,0.001]
[1764003726210,1.383404,2869.1,2869.0,0.001]
[1764003730985,0.4794,2869.1,2869.0,0.001]
[1764003731216,0.407504,2869.3,2869.0,0.001]
[1764003731381,0.884904,2869.1,2869.0,0.001]
[1764003731773,1.383404,2869.1,2869.0,0.001]
[1764003732910,0.405504,2869.1,2869.0,0.001]
[1764003733294,0.002,2869.3,2869.0,0.1354]
[1764003733902,0.002,2869.3,2869.0,0.001]
[1764003735123,0.002,2869.3,2869.2,0.1344]
[1764003735338,0.002,2869.3,2869.2,0.3574]
[1764003735836,0.002,2869.3,2869.2,0.4918]
[1764003736017,0.002,2869.3,2869.2,0.1344]
[1764003736318,0.002,2869.3,2869.2,0.3574]
[1764003736480,0.002,2869.3,2869.2,0.1344]
[1764003736685,0.4814,2869.3,2869.0,0.001]
[1764003736920,0.4814,2869.3,2869.2,0.223]
[1764003737312,0.002,2869.3,2869.2,0.223]
[1764003737500,0.002,2869.3,2869.1,0.223]
[1764003738631,0.002,2869.3,2869.0,0.001]
[1764003738792,0.002,2869.3,2869.1,0.223]
[1764003740222,0.002,2869.3,2869.2,0.1344]
[1764003740628,0.002,2869.3,2869.2,0.3574]
[1764003740986,0.002,2869.3,2869.2,0.1344]
[1764003741183,0.002,2869.3,2869.2,0.3574]
[1764003741422,0.5632,2870.0,2869.3,0.094]
[1764003742220,0.5632,2870.0,2869.0,0.001]
[1764003742420,0.405504,2869.9,2869.4,0.223]
[1764003742845,0.4755,2869.8,2869.4,0.223]
[1764003745519,0.4808,2869.5,2869.4,0.223]
[1764003745991,0.9563,2869.5,2869.0,0.001]
[1764003746229,0.9563,2869.5,2869.3,0.223]
[1764003746409,0.4808,2869.5,2869.0,0.001]
[1764003746605,0.405504,2869.9,2869.1,0.4514]
[1764003747033,0.002,2870.2,2869.2,0.2284]
[1764003747546,0.407504,2870.2,2869.2,3.71364384]
[1764003747726,0.407504,2870.2,2869.3,0.74320087]
[1764003748038,0.407504,2870.2,2869.4,0.223]
[1764003748039,0.002,2870.0,2869.4,0.223]
[1764003748606,0.1905,2869.9,2869.3,0.001]
[1764003748937,0.4808,2869.4,2869.3,0.001]
[1764003749526,1.361804,2869.4,2869.3,0.001]
[1764003753137,0.1905,2869.9,2869.3,0.2294]
[1764003753334,0.9923632,2869.9,2869.3,0.2294]
[1764003753518,0.3263632,2869.8,2869.3,0.2294]
[1764003753712,0.002,2870.0,2869.4,0.223]
[1764003754346,0.002,2870.0,2869.4,0.61676612]
[1764003754547,0.1905,2869.9,2869.3,0.001]
[1764003754709,0.1905,2869.9,2869.5,0.223]
[1764003754912,0.002,2870.0,2869.5,0.223]
[1764003755115,0.002,2870.0,2869.5,0.4514]
[1764003755439,0.4775,2870.0,2869.3,0.001]
[1764003755614,0.1905,2869.9,2869.4,0.223]
[1764003755812,0.1905,2869.9,2869.3,0.3580802]
[1764003756010,0.1905,2869.9,2869.4,0.223]
[1764003756011,0.666,2869.9,2869.4,0.223]
[1764003756451,0.4755,2869.8,2869.5,0.223]
[1764003756745,0.4755,2869.8,2869.3,0.001]
[1764003757125,0.4755,2869.8,2869.3,0.224]
[1764003757552,0.4755,2869.8,2869.3,0.001]
[1764003759563,0.4808,2869.4,2869.3,0.001]
[1764003759934,0.9563,2869.4,2869.3,0.001]
[1764003763828,1.68836768,2869.4,2869.3,0.001]
[1764003768243,0.80736368,2869.4,2869.3,0.001]
[1764003768580,0.4986,2869.4,2869.3,0.001]
[1764003768868,0.91609411,2869.9,2869.3,0.001]
[1764003769068,0.81071292,2869.8,2869.3,0.001]
[1764003769228,0.73171692,2869.7,2869.3,0.001]
[1764003769430,0.91609411,2869.9,2869.3,0.001]
[1764003769728,0.32619938,2869.8,2869.3,0.001]
[1764003769932,0.51669938,2869.9,2869.3,0.001]
[1764003772695,0.4719,2869.8,2869.3,0.001]
[1764003772892,0.4909,2869.4,2869.3,0.001]
[1764003773388,0.4719,2869.8,2869.3,0.001]
[1764003774193,0.4909,2869.4,2869.3,0.001]
[1764003775490,0.9628,2869.4,2869.3,0.001]
[1764003775996,0.4719,2869.7,2869.3,0.001]
[1764003776508,1.065204,2869.9,2869.3,0.001]
[1764003776791,0.32622986,2869.8,2869.3,0.001]
[1764003777493,0.79812986,2869.8,2869.3,0.001]
[1764003777813,0.4719,2869.8,2869.3,0.001]
[1764003778110,0.4909,2869.4,2869.3,0.001]
[1764003778462,1.368304,2869.4,2869.3,0.001]
[1764003778862,1.69470058,2869.4,2869.3,0.001]
[1764003779566,1.368304,2869.4,2869.3,0.001]
[1764003780593,1.69468368,2869.4,2869.3,0.001]
[1764003781349,1.13109811,2869.3,2869.0,0.001]
[1764003781512,1.72839811,2868.8,2868.5,0.001]
[1764003781691,0.405504,2868.5,2867.0,0.2784]
[1764003781898,1.32118368,2868.4,2867.1,0.223]
[1764003782216,1.22278368,2868.4,2867.4,0.2324]
[1764003782414,1.69468368,2868.4,2867.4,0.2324]
[1764003782807,1.69468368,2868.4,2867.0,0.05]
[1764003782983,1.62199811,2868.3,2866.3,0.2334]
[1764003783317,1.62199811,2868.3,2865.8,3.15616346]
[1764003783318,1.182604,2867.8,2866.1,0.2354]
[1764003783617,0.405504,2867.5,2866.1,0.2354]
[1764003783913,0.405504,2867.3,2865.8,0.3198]
[1764003784115,0.6949,2867.7,2865.8,1.04539411]
[1764003784116,0.405504,2867.1,2865.8,1.04539411]
[1764003784302,0.405504,2867.5,2865.9,0.71118983]
[1764003784503,0.405504,2867.3,2865.9,0.71118983]
[1764003784819,0.405504,2867.4,2866.0,0.2354]
[1764003784980,0.405504,2867.4,2866.1,2.217046]
[1764003785176,0.877404,2867.4,2866.1,2.207037]
[1764003785417,0.405504,2867.4,2866.2,0.55220311]
[1764003785728,0.405504,2867.4,2866.2,0.2354]
[1764003785893,0.877404,2867.4,2866.3,0.2354]
[1764003787140,0.877404,2867.4,2865.8,0.3198]
[1764003787425,0.877404,2867.4,2865.8,0.0844]
[1764003787671,0.405504,2866.9,2865.8,0.0844]
[1764003787785,0.628504,2866.9,2865.8,0.0844]
[1764003789890,0.628504,2866.9,2865.3,0.001]
[1764003789891,0.6787,2866.1,2865.3,0.001]
[1764003790083,0.1878,2866.1,2865.3,0.001]
[1764003790419,0.405504,2866.8,2865.5,0.2354]
[1764003790621,0.405504,2866.8,2865.5,0.60804359]
[1764003791438,0.405504,2866.8,2865.5,0.2354]
[1764003792109,0.405504,2866.8,2866.1,0.0864]
[1764003792419,0.405504,2866.8,2865.5,3.48979235]
[1764003792588,0.405504,2866.8,2865.5,3.72519235]
[1764003792986,0.405504,2866.8,2865.5,0.2354]
[1764003793423,0.1878,2867.3,2866.1,0.3218]
[1764003793586,0.1878,2867.3,2866.2,0.0348894]
[1764003793789,0.1878,2867.3,2866.1,0.0864]
[1764003793991,0.2862,2867.3,2866.1,0.0864]
[1764003794186,0.1878,2867.3,2866.1,0.3218]
[1764003794790,0.2862,2867.3,2866.1,0.0864]
[1764003795008,0.405504,2866.9,2866.1,0.0864]
[1764003795233,0.405504,2866.7,2865.7,0.2354]
[1764003795645,0.405504,2866.5,2865.7,0.2354]
[1764003795816,0.405504,2866.5,2865.5,0.2354]
[1764003796016,0.405504,2866.5,2865.5,0.63033919]
[1764003796854,0.405504,2866.4,2865.5,0.2354]
[1764003797171,0.405504,2866.4,2865.3,0.001]
[1764003797172,0.405504,2866.2,2865.3,0.001]
[1764003797345,0.405504,2866.2,2865.3,0.2364]
[1764003797652,0.405504,2866.2,2865.6,0.001]
[1764003799320,0.628504,2866.6,2865.6,0.2364]
[1764003799856,0.405504,2866.3,2865.6,0.001]
[1764003800357,0.882604,2866.3,2865.6,0.001]